bitfinex-derivatives/quotes_BTCF0:USTF0_20250426
["timestamp","ask_amount","ask_price","bid_price","bid_amount"]
[1745646942363,0.3495,94707.0,94701.0,0.05263363]
[1745646942576,0.3495,94707.0,94702.0,0.05263363]
[1745646942777,0.3495,94707.0,94703.0,0.05263363]
[1745646942970,0.3495,94707.0,94704.0,0.05263363]
[1745646943167,0.3495,94707.0,94700.0,0.0879]
[1745646943369,0.3495,94707.0,94701.0,0.05263335]
[1745646943673,0.3495,94707.0,94702.0,0.05263335]
[1745646943869,0.3495,94707.0,94703.0,0.05263335]
[1745646944075,0.3495,94707.0,94700.0,0.0879]
[1745646944271,0.3495,94707.0,94701.0,0.05263332]
[1745646944576,0.3495,94707.0,94702.0,0.05263332]
[1745646944771,0.3495,94707.0,94703.0,0.05263332]
[1745646944972,0.3495,94707.0,94704.0,0.14133332]
[1745646945270,0.3495,94707.0,94705.0,0.05263332]
[1745646945471,0.3495,94707.0,94704.0,0.0887]
[1745646945664,0.3495,94707.0,94705.0,0.05263311]
[1745646945865,0.3495,94707.0,94704.0,0.0887]
[1745646946473,0.3495,94707.0,94705.0,0.05263311]
[1745646946670,0.3495,94707.0,94704.0,0.0887]
[1745646946866,0.3495,94707.0,94705.0,0.05263303]
[1745646947077,0.3495,94707.0,94704.0,0.0887]
[1745646947276,0.3495,94707.0,94704.0,0.0897]
[1745646947577,0.3495,94707.0,94705.0,0.05263335]
[1745646947770,0.3495,94707.0,94704.0,0.0897]
[1745646947970,0.3495,94707.0,94704.0,0.0887]
[1745646948166,0.3495,94707.0,94705.0,0.05263399]
[1745646948375,0.3495,94707.0,94704.0,0.0887]
[1745646948579,0.3495,94707.0,94705.0,0.05263368]
[1745646948879,0.3495,94707.0,94704.0,0.0887]
[1745646949067,0.3495,94707.0,94705.0,0.05263346]
[1745646949271,0.3495,94707.0,94704.0,0.0887]
[1745646949577,0.3495,94707.0,94705.0,0.05263336]
[1745646949775,0.3495,94707.0,94704.0,0.0887]
[1745646949966,0.3495,94707.0,94705.0,0.05263335]
[1745646950166,0.3495,94707.0,94704.0,0.0897]
[1745646950374,0.3495,94707.0,94705.0,0.05263326]
[1745646950580,0.3495,94707.0,94704.0,0.0887]
[1745646951872,0.3495,94707.0,94704.0,0.0897]
[1745646956176,0.3495,94707.0,94695.0,0.0898]
[1745646956378,0.3495,94707.0,94696.0,0.0886]
[1745646956580,0.2110953,94705.0,94697.0,0.05262108]
[1745646956772,0.2110953,94705.0,94698.0,0.05262108]
[1745646957078,0.1739,94704.0,94699.0,0.0886]
[1745646958284,0.3419,94704.0,94699.0,0.0886]
[1745646958977,0.3419,94704.0,94699.0,0.0896]
[1745646959175,0.2111013,94702.0,94699.0,0.0896]
[1745646959378,0.25,94701.0,94699.0,0.0896]
[1745646959670,0.25,94701.0,94699.0,0.0906]
[1745646960075,0.418,94701.0,94699.0,0.0906]
[1745646961479,0.418,94701.0,94699.0,0.0896]
[1745646961671,0.418,94701.0,94699.0,0.0906]
[1745646961875,0.3608,94700.0,94692.0,0.06444]
[1745646962082,0.5288,94700.0,94692.0,0.06444]
[1745646962284,0.1724,94699.0,94692.0,0.06444]
[1745646962885,0.1724,94699.0,94692.0,0.06744]
[1745646963186,0.3404,94699.0,94692.0,0.06744]
[1745646963680,0.3404,94699.0,94692.0,0.06444]
[1745646963884,0.3404,94699.0,94692.0,0.06744]
[1745646964084,0.3404,94699.0,94692.0,0.06944]
[1745646964584,0.3404,94699.0,94692.0,0.06744]
[1745646964885,0.3404,94699.0,94692.0,0.06944]
[1745646965181,0.3404,94699.0,94693.0,0.0818]
[1745646965986,0.3608,94694.0,94693.0,0.0818]
[1745646966381,0.3608,94694.0,94693.0,0.0838]
[1745646967089,0.5288,94694.0,94693.0,0.0828]
[1745646967288,0.168,94694.0,94693.0,0.0848]
[1745646967786,0.168,94694.0,94693.0,0.0838]
[1745646968088,0.168,94694.0,94693.0,0.0848]
[1745646968289,0.344,94694.0,94693.0,0.0848]
[1745646973503,0.344,94694.0,94693.0,0.13738208]
[1745646973994,0.344,94694.0,94693.0,0.05558208]
[1745646975794,0.344,94694.0,94693.0,0.13848208]
[1745646998820,0.344,94694.0,94693.0,0.05558208]
[1745647003030,0.344,94694.0,94693.0,0.13448208]
[1745647040448,0.344,94694.0,94693.0,0.05558208]
[1745647047653,0.344,94694.0,94693.0,0.12918208]
[1745647053056,0.344,94694.0,94693.0,0.0766]
[1745647053649,0.344,94694.0,94693.0,0.003]
[1745647055053,0.344,94694.0,94693.0,0.0707]
[1745647062575,0.344,94694.0,94693.0,0.003]
[1745647063074,0.344,94694.0,94693.0,0.05564372]
[1745647067977,0.344,94694.0,94693.0,0.12244372]
[1745647077788,0.344,94694.0,94693.0,0.05564372]
[1745647079980,0.344,94694.0,94693.0,0.12814372]
[1745647081184,0.344,94694.0,94693.0,0.05564372]
[1745647082485,0.5551179,94694.0,94693.0,0.05564372]
[1745647082784,0.5551179,94694.0,94693.0,0.003]
[1745647084791,1.2767179,94694.0,94693.0,0.003]
[1745647086382,0.2111215,94693.0,94685.0,0.0204]
[1745647086684,0.3608,94686.0,94685.0,0.0174]
[1745647087088,0.3608,94686.0,94682.0,0.0644]
[1745647087386,0.2135,94685.0,94682.0,0.0644]
[1745647087778,0.2135,94685.0,94682.0,0.0114]
[1745647088186,0.3815,94685.0,94682.0,0.0114]
[1745647088490,0.3815,94685.0,94682.0,0.0194]
[1745647089780,0.3815,94685.0,94682.0,0.0114]
[1745647089991,0.3815,94685.0,94682.0,0.0174]
[1745647092987,0.3608,94683.0,94682.0,0.0174]
[1745647093187,0.5288,94683.0,94682.0,0.0174]
[1745647094190,0.5288,94683.0,94682.0,0.0184]
[1745647102893,0.168,94683.0,94682.0,0.0184]
[1745647103187,0.5288,94683.0,94682.0,0.0184]
[1745647104102,0.5288,94683.0,94682.0,0.007]
[1745647107292,0.2111647,94673.0,94648.0,0.3608]
[1745647107604,0.2111848,94664.0,94655.0,0.16154401]
[1745647107807,0.5719848,94664.0,94663.0,0.00968975]
[1745647108004,0.2111998,94658.0,94655.0,0.16154401]
[1745647108315,0.5720026,94656.0,94655.0,0.1882146]
[1745647108697,0.6934026,94656.0,94655.0,0.1882146]
[1745647109107,0.8614026,94656.0,94655.0,0.1882146]
[1745647109304,0.8614026,94656.0,94655.0,0.1902146]
[1745647109509,0.755848,94656.0,94650.0,0.21489592]
[1745647109805,0.6502,94656.0,94650.0,0.21489592]
[1745647110900,0.8614031,94656.0,94655.0,0.001]
[1745647111203,0.6522,94656.0,94655.0,0.02798948]
[1745647111403,0.757848,94656.0,94655.0,0.001]
[1745647111598,0.757848,94656.0,94650.0,0.001]
[1745647111599,0.757848,94656.0,94640.0,0.06571127]
[1745647111799,0.3608,94648.0,94640.0,0.06571127]
[1745647111993,0.0661,94647.0,94640.0,0.06571127]
[1745647112206,0.2341,94647.0,94640.0,0.06371127]
[1745647112499,0.2341,94647.0,94640.0,0.06592064]
[1745647112704,0.0633,94646.0,94640.0,0.06592064]
[1745647112901,0.0633,94646.0,94640.0,0.07385378]
[1745647113204,0.0625,94645.0,94640.0,0.07385378]
[1745647113399,0.0625,94645.0,94640.0,0.07785378]
[1745647113701,0.1276,94644.0,94640.0,0.07785378]
[1745647113906,0.1276,94644.0,94640.0,0.07385378]
[1745647114100,0.0625,94643.0,94640.0,0.07785378]
[1745647114296,0.0625,94643.0,94640.0,0.07985378]
[1745647114494,0.0644,94642.0,94640.0,0.07985378]
[1745647114908,0.0625,94641.0,94640.0,0.07985378]
[1745647115502,0.1269,94641.0,94640.0,0.07585378]
[1745647115698,0.1269,94641.0,94640.0,0.07885378]
[1745647116100,0.2949,94641.0,94640.0,0.07585378]
[1745647116301,0.2949,94641.0,94640.0,0.07885378]
[1745647117104,0.2949,94641.0,94640.0,0.07985378]
[1745647118009,0.2959,94641.0,94640.0,0.07985378]
[1745647130819,0.2315,94641.0,94640.0,0.03314251]
[1745647131004,0.19309455,94641.0,94640.0,0.03314251]
[1745647131209,0.19309455,94641.0,94640.0,0.09754251]
[1745647132113,0.02509455,94641.0,94640.0,0.09754251]
[1745647133717,0.02509455,94641.0,94640.0,0.03314251]
[1745647134020,0.02509455,94641.0,94640.0,0.09754251]
[1745647134215,0.19309455,94641.0,94640.0,0.09754251]
[1745647135218,0.02509455,94641.0,94640.0,0.15964251]
[1745647135519,0.02509455,94641.0,94640.0,0.09524251]
[1745647135722,0.02509455,94641.0,94640.0,0.15964251]
[1745647136218,0.19309455,94641.0,94640.0,0.15964251]
[1745647138326,0.19309455,94641.0,94640.0,0.09754251]
[1745647139412,0.19309455,94641.0,94640.0,0.15005429]
[1745647147225,0.19309455,94641.0,94640.0,0.08565429]
[1745647226765,0.19309455,94641.0,94640.0,0.29689259]
[1745647284510,0.03767481,94645.0,94644.0,0.2112294]
[1745647284805,0.03739481,94645.0,94644.0,0.62454118]
[1745647285401,0.03739481,94645.0,94644.0,0.66174118]
[1745647286003,0.03739481,94645.0,94644.0,0.69082118]
[1745647286210,0.20539481,94645.0,94644.0,0.69082118]
[1745647286710,0.20639481,94645.0,94644.0,0.69282118]
[1745647287816,0.12562481,94645.0,94644.0,0.6403094]
[1745647288106,0.001,94645.0,94644.0,0.6884094]
[1745647291109,0.001,94645.0,94644.0,0.74106173]
[1745647291309,0.001,94645.0,94644.0,0.6884094]
[1745647291911,0.001,94645.0,94644.0,0.74105791]
[1745647300815,0.001,94645.0,94644.0,0.38025791]
[1745647301021,0.001,94645.0,94644.0,0.74105791]
[1745647301913,0.001,94645.0,94644.0,0.69295791]
[1745647302112,0.169,94645.0,94644.0,0.69295791]
[1745647306414,0.169,94645.0,94644.0,0.33215791]
[1745647306624,0.169,94645.0,94644.0,0.69295791]
[1745647308113,0.169,94645.0,94644.0,0.33215791]
[1745647308321,0.169,94645.0,94644.0,0.69295791]
[1745647311414,0.169,94645.0,94644.0,0.33215791]
[1745647311616,0.169,94645.0,94644.0,0.69295791]
[1745647315918,0.3802272,94645.0,94644.0,0.12092851]
[1745647316119,0.169,94645.0,94644.0,0.05664851]
[1745647316318,0.3802272,94645.0,94644.0,0.05664851]
[1745647316530,0.3802272,94645.0,94640.0,0.02714251]
[1745647316731,0.0984,94644.0,94641.0,0.05224479]
[1745647316931,0.0984,94644.0,94642.0,0.05224479]
[1745647317232,0.2664,94644.0,94643.0,0.05224479]
[1745647318931,0.2664,94644.0,94643.0,0.05624479]
[1745647318932,0.2674,94644.0,94643.0,0.05624479]
[1745647319932,0.3138,94644.0,94643.0,0.05624479]
[1745647320634,0.6746,94644.0,94643.0,0.05624479]
[1745647321429,0.3138,94644.0,94643.0,0.05624479]
[1745647321635,0.6746,94644.0,94643.0,0.004]
[1745647322030,0.6746,94644.0,94643.0,0.05623236]
[1745647322333,0.6746,94644.0,94643.0,0.004]
[1745647328739,0.8858294,94644.0,94643.0,0.004]
[1745647332641,0.5250294,94644.0,94643.0,0.004]
[1745647332841,0.8858294,94644.0,94643.0,0.004]
[1745647336749,0.5250294,94644.0,94643.0,0.004]
[1745647336951,0.8858294,94644.0,94643.0,0.004]
[1745647341852,0.6746,94644.0,94643.0,0.004]
[1745647342453,0.6746,94644.0,94643.0,0.26746545]
[1745647342953,0.6746,94644.0,94643.0,0.05623385]
[1745647343645,0.6746,94644.0,94643.0,0.10543385]
[1745647346751,0.3138,94644.0,94643.0,0.10543385]
[1745647350450,0.3138,94644.0,94643.0,0.31666545]
[1745647351858,0.3138,94644.0,94643.0,0.10543385]
[1745647353462,0.3138,94644.0,94643.0,0.31666545]
[1745647353762,0.3138,94644.0,94643.0,0.10543385]
[1745647354063,0.3138,94644.0,94643.0,0.05623385]
[1745647354256,0.3138,94644.0,94643.0,0.26746545]
[1745647359067,0.3138,94644.0,94643.0,0.05623385]
[1745647360068,0.5250294,94644.0,94643.0,0.05623385]
[1745647374771,0.3138,94644.0,94643.0,0.05623385]
[1745647384684,0.3138,94644.0,94643.0,0.26746545]
[1745647385579,0.3138,94644.0,94643.0,0.05623385]
[1745647385885,0.3138,94644.0,94643.0,0.2152316]
[1745647390382,0.2154,94644.0,94643.0,0.2152316]
[1745647390587,0.1172,94644.0,94643.0,0.62833626]
[1745647391076,0.001,94644.0,94643.0,0.72173626]
[1745647393886,0.001,94644.0,94643.0,0.36093626]
[1745647394084,0.001,94644.0,94643.0,0.72173626]
[1745647403581,0.001,94644.0,94643.0,0.36093626]
[1745647406393,0.001,94644.0,94643.0,0.31353626]
[1745647409291,0.001,94644.0,94643.0,0.26753626]
[1745647416195,0.001,94644.0,94643.0,0.2152316]
[1745647416397,0.001,94644.0,94643.0,0.3080316]
[1745647417302,0.169,94644.0,94643.0,0.3080316]
[1745647418302,0.001,94644.0,94643.0,0.2609316]
[1745647419100,0.169,94644.0,94643.0,0.2609316]
[1745647419300,0.169,94644.0,94643.0,0.31320438]
[1745647420304,0.001,94644.0,94643.0,0.31320438]
[1745647423705,0.001,94644.0,94643.0,0.67400438]
[1745647426000,0.001,94644.0,94643.0,0.31320438]
[1745647426205,0.001,94644.0,94643.0,0.67400438]
[1745647427903,0.001,94644.0,94643.0,0.31320438]
[1745647428106,0.001,94644.0,94643.0,0.67400438]
[1745647431109,0.001,94644.0,94643.0,0.31320438]
[1745647431311,0.001,94644.0,94643.0,0.67400438]
[1745647433007,0.001,94644.0,94643.0,0.73820438]
[1745647433209,0.169,94644.0,94643.0,0.73820438]
[1745647435013,0.03441766,94644.0,94643.0,0.73820438]
[1745647435311,0.3378,94658.0,94657.0,0.2112004]
[1745647436410,0.168,94658.0,94657.0,0.5720004]
[1745647436606,0.172,94658.0,94657.0,0.5730004]
[1745647437104,0.172,94658.0,94657.0,0.6217004]
[1745647438505,0.172,94658.0,94657.0,0.2122004]
[1745647442013,0.172,94658.0,94657.0,0.2764004]
[1745647448412,0.145,94664.0,94663.0,0.211187]
[1745647448607,0.3608,94680.0,94674.0,0.2111625]
[1745647448608,0.0176,94675.0,94674.0,0.2111625]
[1745647448808,0.3608,94680.0,94679.0,0.2111513]
[1745647449209,0.5288,94680.0,94679.0,0.2111513]
[1745647449911,0.5288,94680.0,94679.0,0.3096513]
[1745647450114,0.3621,94691.0,94687.0,0.0527831]
[1745647450313,0.3621,94691.0,94690.0,0.2111268]
[1745647451416,0.5301,94691.0,94690.0,0.21909698]
[1745647451617,0.1693,94691.0,94690.0,0.23756299]
[1745647451809,0.1723,94691.0,94690.0,0.23756299]
[1745647452211,0.1753,94691.0,94690.0,0.23756299]
[1745647452917,0.1753,94691.0,94690.0,0.23856299]
[1745647453919,0.1753,94691.0,94690.0,0.33256299]
[1745647454115,0.1723,94691.0,94690.0,0.33256299]
[1745647454317,0.1753,94691.0,94690.0,0.33256299]
[1745647456919,0.1753,94691.0,94690.0,0.02743619]
[1745647457419,0.4920326,94691.0,94690.0,0.02743619]
[1745647458211,0.5878326,94691.0,94690.0,0.02743619]
[1745647458416,0.0527817,94690.0,94661.0,0.0489]
[1745647458615,0.3608,94672.0,94671.0,0.06416]
[1745647458821,0.5719669,94672.0,94671.0,0.07203364]
[1745647459021,0.5719669,94672.0,94671.0,0.09067653]
[1745647459217,0.7399669,94672.0,94671.0,0.09067653]
[1745647459413,0.8357669,94672.0,94671.0,0.09067653]
[1745647459611,0.8357669,94672.0,94671.0,0.09167653]
[1745647460218,0.8357669,94672.0,94671.0,0.02751653]
[1745647460421,0.8357669,94672.0,94671.0,0.02851653]
[1745647461626,0.8367669,94672.0,94671.0,0.02751653]
[1745647461825,0.8367669,94672.0,94671.0,0.001]
[1745647462520,0.8387669,94672.0,94671.0,0.001]
[1745647463326,1.1995669,94672.0,94671.0,0.00878653]
[1745647463521,1.1995669,94672.0,94671.0,0.001]
[1745647464522,0.2112026,94656.0,94655.0,0.0015848]
[1745647464723,0.3608,94656.0,94652.0,0.06416]
[1745647464921,0.1423,94655.0,94652.0,0.00800984]
[1745647465127,0.1423,94655.0,94651.0,0.06416]
[1745647465326,0.1423,94655.0,94652.0,0.2112113]
[1745647466124,0.3103,94655.0,94653.0,0.2112093]
[1745647466316,0.3103,94655.0,94651.0,0.06516]
[1745647466519,0.2112073,94654.0,94651.0,0.2763729]
[1745647466920,0.0917,94653.0,94651.0,0.2763729]
[1745647467326,0.3029096,94653.0,94651.0,0.07297726]
[1745647468024,0.3029096,94653.0,94651.0,0.07197726]
[1745647468221,0.4709096,94653.0,94651.0,0.07297726]
[1745647468830,0.2112115,94652.0,94651.0,0.07297726]
[1745647469321,0.8227635,94652.0,94651.0,0.00881726]
[1745647470120,0.9907635,94652.0,94651.0,0.00881726]
[1745647470325,0.9907635,94652.0,94651.0,0.00781726]
[1745647470525,0.9907635,94652.0,94651.0,0.001]
[1745647470928,0.211226,94646.0,94644.0,0.2112288]
[1745647471229,0.6650272,94645.0,94644.0,0.2112288]
[1745647472026,0.6650272,94645.0,94644.0,0.2132288]
[1745647472229,0.8330272,94645.0,94644.0,0.2152288]
[1745647472926,0.8330272,94645.0,94644.0,0.004]
[1745647474623,0.8330272,94645.0,94644.0,0.01210899]
[1745647477034,0.4722272,94645.0,94644.0,0.01210899]
[1745647477236,0.8330272,94645.0,94644.0,0.01210899]
[1745647492329,0.8330272,94645.0,94644.0,0.00810899]
[1745647492533,0.2112339,94642.0,94641.0,0.25964349]
[1745647492848,0.5720339,94642.0,94641.0,0.24564349]
[1745647493147,0.7400339,94642.0,94641.0,0.19864349]
[1745647493538,0.7410339,94642.0,94641.0,0.20239595]
[1745647495140,0.7410339,94642.0,94641.0,0.20439595]
[1745647495840,0.5298,94642.0,94641.0,0.20439595]
[1745647496433,0.624,94642.0,94641.0,0.20439595]
[1745647498641,0.624,94642.0,94641.0,0.2566249]
[1745647498839,0.624,94642.0,94641.0,0.10938141]
[1745647502152,0.624,94642.0,94641.0,0.06398141]
[1745647504948,0.2632,94642.0,94641.0,0.06398141]
[1745647505150,0.624,94642.0,94641.0,0.06398141]
[1745647505554,0.2632,94642.0,94641.0,0.06398141]
[1745647505856,0.8352339,94642.0,94641.0,0.06398141]
[1745647508460,0.624,94642.0,94641.0,0.27521751]
[1745647508651,0.624,94642.0,94641.0,0.06398141]
[1745647509161,0.624,94642.0,94641.0,0.27521751]
[1745647509360,0.624,94642.0,94641.0,0.06398141]
[1745647510357,0.8352339,94642.0,94641.0,0.06398141]
[1745647513858,0.624,94642.0,94641.0,0.27521751]
[1745647515563,0.624,94642.0,94641.0,0.23880628]
[1745647517059,0.2632,94642.0,94641.0,0.23880628]
[1745647517364,0.624,94642.0,94641.0,0.23880628]
[1745647517558,0.624,94642.0,94641.0,0.02757388]
[1745647517758,0.8352339,94642.0,94641.0,0.02757388]
[1745647519269,0.8352339,94642.0,94641.0,0.02747618]
[1745647521059,0.8352339,94642.0,94641.0,0.02748464]
[1745647523357,0.8352339,94642.0,94641.0,0.02744985]
[1745647524767,0.8352339,94642.0,94641.0,0.02745403]
[1745647525364,0.4744339,94642.0,94641.0,0.02745403]
[1745647525667,0.8352339,94642.0,94641.0,0.02745403]
[1745647526265,0.8352339,94642.0,94641.0,0.01175246]
[1745647526567,0.8352339,94642.0,94641.0,0.06404714]
[1745647527966,0.4744339,94642.0,94641.0,0.06404714]
[1745647528268,0.8352339,94642.0,94641.0,0.0797744]
[1745647530465,0.8352339,94642.0,94641.0,0.06404714]
[1745647534773,0.4744339,94642.0,94641.0,0.06404714]
[1745647534974,0.8352339,94642.0,94641.0,0.06404714]
[1745647535773,0.4744339,94642.0,94641.0,0.06404714]
[1745647535968,0.8352339,94642.0,94641.0,0.06404714]
[1745647537164,0.8352339,94642.0,94624.0,0.06416]
[1745647537165,0.72966,94642.0,94624.0,0.06416]
[1745647537371,0.9328718,94625.0,94624.0,0.06416]
[1745647537573,0.9328718,94625.0,94624.0,0.11601621]
[1745647537773,0.9328718,94625.0,94624.0,0.06416]
[1745647538379,0.9328718,94625.0,94624.0,0.07416]
[1745647538676,0.7216,94625.0,94624.0,0.07416]
[1745647538876,0.7226,94625.0,94624.0,0.285434]
[1745647539083,0.7226,94625.0,94624.0,0.29342473]
[1745647539273,0.8906,94625.0,94624.0,0.29342473]
[1745647539984,0.8916,94625.0,94624.0,0.29142473]
[1745647541079,0.8916,94625.0,94624.0,0.34324613]
[1745647542580,0.8916,94625.0,94624.0,0.27908613]
[1745647544684,0.5275525,94625.0,94624.0,0.29502789]
[1745647544877,0.0478,94627.0,94626.0,0.2112696]
[1745647545075,0.0482,94636.0,94635.0,0.2112495]
[1745647545281,0.0482,94636.0,94635.0,0.27901266]
[1745647546078,0.2162,94636.0,94635.0,0.27901266]
[1745647546585,0.2162,94636.0,94635.0,0.27899893]
[1745647547084,0.2162,94636.0,94635.0,0.34315893]
[1745647547488,0.2172,94636.0,94635.0,0.34515893]
[1745647548086,0.2172,94636.0,94635.0,0.34816802]
[1745647548286,0.2632,94636.0,94635.0,0.34816802]
[1745647549487,0.2632,94636.0,94635.0,0.34815482]
[1745647553375,0.2632,94636.0,94635.0,0.34820831]
[1745647555178,0.2632,94636.0,94635.0,0.34815621]
[1745647556686,0.2632,94636.0,94635.0,0.29633481]
[1745647558788,0.2632,94636.0,94635.0,0.29662567]
[1745647560592,0.2632,94636.0,94635.0,0.29660103]
[1745647561688,0.2632,94636.0,94635.0,0.23244103]
[1745647561892,0.2632,94636.0,94635.0,0.29660103]
[1745647562599,0.2632,94636.0,94635.0,0.34838033]
[1745647562792,0.2632,94636.0,94635.0,0.28422033]
[1745647562989,0.2632,94636.0,94635.0,0.34838033]
[1745647563186,0.2632,94636.0,94635.0,0.3321888]
[1745647563390,0.2632,94636.0,94635.0,0.29644444]
[1745647563689,0.2632,94636.0,94635.0,0.2804095]
[1745647566598,0.2632,94636.0,94635.0,0.33219396]
[1745647569502,0.2632,94636.0,94635.0,0.34814255]
[1745647569708,0.2632,94636.0,94635.0,0.29635809]
[1745647569897,0.2632,94636.0,94635.0,0.34814443]
[1745647570699,0.2632,94636.0,94635.0,0.29635809]
[1745647573698,0.2632,94636.0,94635.0,0.08510859]
[1745647575399,0.4744473,94636.0,94635.0,0.06916]
[1745647576198,0.2112711,94626.0,94625.0,0.06412]
[1745647576402,0.3608,94626.0,94625.0,0.06412]
[1745647577096,0.5288,94626.0,94625.0,0.06412]
[1745647577290,0.618,94626.0,94625.0,0.06412]
[1745647577489,0.619,94626.0,94625.0,0.06712]
[1745647577694,0.62,94626.0,94625.0,0.07212]
[1745647578290,0.62,94626.0,94625.0,0.2833918]
[1745647579597,0.62,94626.0,94625.0,0.07212]
[1745647579799,0.62,94626.0,94625.0,0.2833918]
[1745647580189,0.62,94626.0,94625.0,0.07212]
[1745647584097,0.2112723,94625.0,94619.0,0.2112841]
[1745647584401,0.62,94626.0,94618.0,0.06416]
[1745647584604,0.0905,94624.0,94621.0,0.2112804]
[1745647585100,0.2585,94624.0,94621.0,0.2112804]
[1745647585298,0.2585,94624.0,94621.0,0.21940163]
[1745647585699,0.2585,94624.0,94622.0,0.2112785]
[1745647585909,0.2595,94624.0,94623.0,0.2112763]
[1745647586502,0.2595,94624.0,94616.0,0.06416]
[1745647586696,0.3608,94618.0,94616.0,0.06416]
[1745647586900,0.0906,94617.0,94616.0,0.3282748]
[1745647587098,0.1402,94617.0,94616.0,0.3282748]
[1745647588207,0.3082,94617.0,94616.0,0.3282748]
[1745647589100,0.3092,94617.0,94616.0,0.3292748]
[1745647589306,0.3102,94617.0,94616.0,0.3292748]
[1745647592608,0.3102,94617.0,94616.0,0.06516]
[1745647594807,0.3102,94617.0,94616.0,0.2764519]
[1745647598607,0.671,94617.0,94616.0,0.2764519]
[1745647599702,0.671,94617.0,94616.0,0.32824628]
[1745647604117,0.3102,94617.0,94616.0,0.32824628]
[1745647604419,0.671,94617.0,94616.0,0.32824628]
[1745647607519,0.3102,94617.0,94616.0,0.32824628]
[1745647607716,0.671,94617.0,94616.0,0.32824628]
[1745647631529,0.3102,94617.0,94616.0,0.32824628]
[1745647631829,0.671,94617.0,94616.0,0.32824628]
[1745647637424,0.3102,94617.0,94616.0,0.32824628]
[1745647643838,0.3092,94617.0,94616.0,0.32724628]
[1745647644039,0.3102,94617.0,94616.0,0.32824628]
[1745647644242,0.3092,94617.0,94616.0,0.32824628]
[1745647644540,0.3112,94617.0,94616.0,0.32824628]
[1745647648637,0.3112,94617.0,94616.0,0.11695438]
[1745647648840,0.3112,94617.0,94616.0,0.32824628]
[1745647666643,0.2002316,94617.0,94616.0,0.68904628]
[1745647666951,0.1181,94617.0,94616.0,0.68904628]
[1745647667149,0.003,94617.0,94616.0,0.87288136]
[1745647667344,0.003,94617.0,94616.0,0.91668136]
[1745647667548,0.003,94617.0,94616.0,0.94728136]
[1745647668152,0.003,94617.0,94616.0,0.77928136]
[1745647668951,0.003,94617.0,94616.0,0.77927985]
[1745647670142,0.171,94617.0,94616.0,0.77927985]
[1745647680260,0.171,94617.0,94616.0,0.73547985]
[1745647681053,0.171,94617.0,94616.0,0.71964628]
[1745647681253,0.171,94617.0,94616.0,0.73563452]
[1745647682267,0.171,94617.0,94616.0,0.37483452]
[1745647684463,0.171,94617.0,94616.0,0.3747541]
[1745647686150,0.171,94617.0,94616.0,0.3441541]
[1745647689848,0.171,94617.0,94616.0,0.34396471]
[1745647696459,0.171,94617.0,94616.0,0.13267281]
[1745647696969,0.171,94617.0,94616.0,0.13259281]
[1745647698855,0.171,94617.0,94616.0,0.13256357]
[1745647699266,0.171,94617.0,94616.0,0.11687438]
[1745647700469,0.171,94617.0,94616.0,0.13249281]
[1745647701268,0.171,94617.0,94616.0,0.11687438]
[1745647705469,0.171,94617.0,94616.0,0.32816628]
[1745647705964,0.11831,94617.0,94616.0,0.68896628]
[1745647706161,0.11831,94617.0,94616.0,0.6371719]
[1745647706356,0.11831,94617.0,94616.0,0.6528773]
[1745647707061,0.11831,94617.0,94616.0,0.6979773]
[1745647709465,0.11831,94617.0,94616.0,0.3371773]
[1745647709764,0.11831,94617.0,94616.0,0.6979773]
[1745647710667,0.11831,94617.0,94616.0,0.3371773]
[1745647710865,0.11831,94617.0,94616.0,0.6979773]
[1745647714368,0.11831,94617.0,94616.0,0.69795631]
[1745647715762,0.11831,94617.0,94616.0,0.74981446]
[1745647718568,0.11831,94617.0,94616.0,0.74974953]
[1745647719263,0.11831,94617.0,94616.0,0.73413005]
[1745647720070,0.11831,94617.0,94616.0,0.37333005]
[1745647726481,0.11831,94617.0,94616.0,0.38896387]
[1745647726879,0.11831,94617.0,94616.0,0.74976385]
[1745647731176,0.11831,94617.0,94616.0,0.38896385]
[1745647733772,0.11831,94617.0,94616.0,0.38903382]
[1745647734185,0.11282834,94617.0,94616.0,0.38903382]
[1745647736981,0.11282834,94617.0,94616.0,0.34393382]
[1745647738276,0.11282834,94617.0,94616.0,0.13264192]
[1745647740978,0.11282834,94617.0,94616.0,0.34393382]
[1745647746892,0.11282834,94617.0,94616.0,0.34396668]
[1745647748586,0.11282834,94617.0,94616.0,0.34396306]
[1745647750402,0.11282834,94617.0,94616.0,0.34397542]
[1745647750997,0.11282834,94617.0,94616.0,0.13268352]
[1745647752206,0.11282834,94617.0,94616.0,0.13259528]
[1745647754595,0.11282834,94617.0,94616.0,0.11693815]
[1745647759598,0.11282834,94617.0,94616.0,0.13255549]
[1745647760209,0.11282834,94617.0,94616.0,0.34384739]
[1745647761006,0.11282834,94617.0,94616.0,0.13255549]
[1745647761206,0.11282834,94617.0,94616.0,0.1325704]
[1745647761600,0.11282834,94617.0,94616.0,0.11693815]
[1745647763606,0.32411804,94617.0,94616.0,0.05285815]
[1745647763810,0.32411804,94617.0,94616.0,0.11693815]
[1745647764204,0.32411804,94617.0,94616.0,0.06508]
[1745647766601,0.11282834,94617.0,94616.0,0.06508]
[1745647767713,0.32411804,94617.0,94616.0,0.001]
[1745647767910,0.11282834,94617.0,94616.0,0.06508]
[1745647770713,0.32411804,94617.0,94616.0,0.001]
[1745647770911,0.2112986,94613.0,94606.0,0.06408]
[1745647771106,0.3608,94607.0,94606.0,0.06408]
[1745647771308,0.3608,94607.0,94606.0,0.3657474]
[1745647771612,0.3608,94607.0,94606.0,0.1544332]
[1745647772004,0.3608,94607.0,94606.0,0.10259812]
[1745647772311,0.5298,94607.0,94606.0,0.10459812]
[1745647773209,0.5298,94607.0,94606.0,0.10359812]
[1745647773410,0.5748,94607.0,94606.0,0.10359812]
[1745647773715,0.5758,94607.0,94606.0,0.10359812]
[1745647776716,0.5758,94607.0,94606.0,0.15540813]
[1745647779915,0.5758,94607.0,94603.0,0.06408]
[1745647780106,0.0439,94606.0,94604.0,0.05177175]
[1745647780311,0.0439,94606.0,94605.0,0.05177175]